bitfinex/quotes_SOLUSD_20250415
["timestamp","ask_amount","ask_price","bid_price","bid_amount"]
[1744677444806,17.98077839,129.34,129.28,11.7]
[1744677445108,17.98077839,129.32,129.26,7.7363]
[1744677445314,80.8,129.33,129.26,7.7363]
[1744677445608,80.8,129.33,129.24,29.68077839]
[1744677445609,17.98077839,129.32,129.25,7.7369]
[1744677445917,17.98077839,129.3,129.25,25.71767839]
[1744677446087,17.98077839,129.29,129.24,37.41797839]
[1744677446289,17.98077839,129.3,129.25,17.98077839]
[1744677446591,98.78077839,129.31,129.26,17.98077839]
[1744677446793,80.8,129.31,129.26,17.98077839]
[1744677447007,98.78077839,129.31,129.26,17.98077839]
[1744677447419,106.51457839,129.31,129.26,17.98077839]
[1744677448210,106.51457839,129.31,129.25,7.7365]
[1744677448538,17.98077839,129.3,129.25,25.71727839]
[1744677448691,88.5338,129.31,129.25,17.98077839]
[1744677448893,106.51457839,129.31,129.25,17.98077839]
[1744677449295,17.98077839,129.28,129.23,0.063]
[1744677449493,17.98077839,129.27,129.23,0.063]
[1744677449687,7.7351,129.28,129.24,43.98077839]
[1744677450208,6.5743,129.29,129.25,17.98077839]
[1744677450793,14.3089,129.29,129.25,17.98077839]
[1744677450993,14.3089,129.29,129.24,26.0]
[1744677450994,32.28967839,129.29,129.24,43.98077839]
[1744677451400,32.28967839,129.29,129.24,26.0]
[1744677451401,14.3089,129.29,129.24,26.0]
[1744677451607,6.5743,129.29,129.26,17.98077839]
[1744677452195,82.3249,129.3,129.27,17.98077839]
[1744677452396,90.059,129.3,129.26,17.98077839]
[1744677452991,82.3249,129.3,129.26,17.98077839]
[1744677454211,82.3249,129.3,129.27,17.98077839]
[1744677454414,82.3249,129.3,129.26,17.98077839]
[1744677454595,90.0589,129.3,129.26,17.98077839]
[1744677454797,100.30567839,129.3,129.25,33.7369]
[1744677455104,82.3249,129.3,129.25,51.71767839]
[1744677455306,90.0588,129.3,129.24,7.7373]
[1744677455611,25.71687839,129.27,129.23,0.063]
[1744677458323,7.7351,129.28,129.23,18.04377839]
[1744677458498,25.71587839,129.28,129.23,18.04377839]
[1744677459523,80.8,129.27,129.23,18.04377839]
[1744677459700,88.5359,129.27,129.23,0.063]
[1744677460523,88.5359,129.27,129.23,18.04377839]
[1744677462405,1.5249,129.3,129.26,43.98077839]
[1744677462721,80.8,129.31,129.29,17.98077839]
[1744677462926,80.8,129.31,129.3,17.98077839]
[1744677463106,80.8,129.31,129.3,11.22225067]
[1744677463911,80.8,129.31,129.29,11.22225067]
[1744677464924,80.8,129.31,129.27,7.7354]
[1744677465103,80.8,129.31,129.28,17.96179869]
[1744677465721,88.5333,129.31,129.27,17.96179869]
[1744677466031,88.5333,129.31,129.28,17.96179869]
[1744677466032,80.8,129.31,129.28,17.96179869]
[1744677467224,80.8,129.31,129.29,17.96179869]
[1744677467410,1.5333,129.33,129.3,17.96179869]
[1744677467930,9.2656,129.33,129.29,17.96179869]
[1744677468316,1.5333,129.33,129.29,17.96179869]
[1744677468717,9.2654,129.33,129.29,17.96179869]
[1744677469825,1.5333,129.33,129.29,25.69579869]
[1744677470018,1.5333,129.33,129.3,17.96179869]
[1744677470831,83.5826845,129.35,129.32,17.96179869]
[1744677471017,83.5826845,129.35,129.29,7.734]
[1744677471018,83.5826845,129.35,129.33,17.96179869]
[1744677472232,83.5826845,129.35,129.33,25.69389869]
[1744677472811,2.7826845,129.35,129.34,17.96179869]
[1744677473218,2.7826845,129.35,129.34,37.03793226]
[1744677474307,0.03,129.37,129.36,26.0]
[1744677474620,0.03,129.37,129.36,17.96179869]
[1744677475731,0.03,129.37,129.36,25.69209869]
[1744677475927,0.03,129.37,129.36,43.96179869]
[1744677476313,0.03,129.37,129.36,26.0]
[1744677477016,0.03,129.37,129.36,43.96179869]
[1744677478142,0.03,129.37,129.36,51.69209869]
[1744677479215,0.03,129.37,129.36,26.0]
[1744677480917,17.99179869,129.37,129.31,11.9]
[1744677481113,17.96179869,129.33,129.27,7.87786157]
[1744677481329,17.96179869,129.33,129.31,26.0]
[1744677481524,17.96179869,129.32,129.27,7.7357]
[1744677481722,17.96179869,129.33,129.28,17.96179869]
[1744677482530,7.7317,129.34,129.29,17.96179869]
[1744677482727,25.69349869,129.34,129.29,17.96179869]
[1744677482937,17.96179869,129.31,129.27,17.96179869]
[1744677483329,88.7785,129.37,129.3,43.96179869]
[1744677483528,17.96179869,129.35,129.31,17.96179869]
[1744677483925,17.96179869,129.35,129.3,26.0]
[1744677483926,106.74029869,129.37,129.32,17.96179869]
[1744677484435,88.7785,129.37,129.32,17.96179869]
[1744677484648,106.74029869,129.37,129.32,17.96179869]
[1744677485026,114.47009869,129.37,129.32,25.69409869]
[1744677486642,88.7785,129.37,129.32,25.69409869]
[1744677486827,82.4935,129.37,129.33,17.96179869]
[1744677487135,17.96179869,129.34,129.32,26.0]
[1744677487341,17.96179869,129.34,129.29,25.69629869]
[1744677488240,25.69359869,129.34,129.29,25.69629869]
[1744677488424,30.0,129.33,129.29,25.69629869]
[1744677489434,37.7322,129.33,129.29,25.69629869]
[1744677490149,7.7322,129.33,129.29,25.69629869]
[1744677490442,7.7322,129.33,129.29,17.96179869]
[1744677490747,17.96179869,129.32,129.27,37.41719869]
[1744677491449,7.7331,129.32,129.27,37.41719869]
[1744677491649,6.408,129.34,129.31,17.96179869]
[1744677491946,7.7303,129.36,129.31,17.96179869]
[1744677492144,25.69209869,129.36,129.32,17.96179869]
[1744677493040,114.47509869,129.37,129.32,17.96179869]
[1744677493238,106.74519869,129.37,129.33,17.96179869]
[1744677493428,88.7834,129.37,129.33,25.69379869]
[1744677493845,1.6935,129.37,129.34,17.96179869]
[1744677494049,0.03,129.37,129.35,17.96179869]
[1744677494736,0.03,129.37,129.36,17.96179869]
[1744677495327,0.03,129.37,129.36,25.69209869]
[1744677496244,0.03,129.37,129.36,30.0]
[1744677498164,0.03,129.37,129.36,37.7303]
[1744677498453,0.03,129.37,129.36,55.69209869]
[1744677503644,0.03,129.37,129.36,37.7303]
[1744677503852,0.03,129.37,129.36,25.69209869]
[1744677506166,0.03,129.37,129.36,7.7303]
[1744677506359,0.03,129.37,129.36,25.69209869]
[1744677506942,0.03,129.37,129.36,55.69209869]
[1744677507144,0.03,129.37,129.36,48.9417868]
[1744677509644,0.03,129.37,129.36,49.22610994]
[1744677510278,0.03,129.37,129.36,48.9417868]
[1744677511069,0.03,129.37,129.36,37.7303]
[1744677511266,11.2414868,129.37,129.36,30.0]
[1744677511651,11.2414868,129.37,129.34,30.0]
[1744677511978,0.03,129.37,129.34,48.9427868]
[1744677512154,0.03,129.37,129.36,37.2114868]
[1744677512472,0.03,129.37,129.36,26.0]
[1744677513571,0.03,129.37,129.36,37.2114868]
[1744677514378,0.03,129.37,129.36,26.0]
[1744677518973,0.03,129.37,129.36,45.22610994]
[1744677520183,0.03,129.37,129.36,44.9417868]
[1744677521558,0.03,129.37,129.36,37.2114868]
[1744677521757,0.03,129.37,129.36,26.0]
[1744677522183,0.03,129.37,129.33,11.62]
[1744677522476,0.03,129.37,129.34,11.2114868]
[1744677522872,0.03,129.37,129.36,11.2114868]
[1744677523174,0.03,129.37,129.36,37.2114868]
[1744677524376,0.03,129.37,129.36,26.0]
[1744677525978,0.03,129.37,129.36,33.7303]
[1744677526155,0.03,129.37,129.36,44.9417868]
[1744677528280,0.03,129.37,129.36,45.22610994]
[1744677530163,0.03,129.37,129.36,44.9417868]
[1744677532192,0.03,129.37,129.36,45.22610994]
[1744677532481,0.03,129.37,129.36,19.22610994]
[1744677533390,0.03,129.37,129.36,18.9417868]
[1744677533599,0.03,129.37,129.36,44.9417868]
[1744677537186,0.03,129.37,129.36,33.7303]
[1744677537397,0.03,129.37,129.36,40.90626272]
[1744677537983,0.03,129.37,129.36,26.0]
[1744677538190,0.03,129.37,129.36,33.17596272]
[1744677539975,0.03,129.37,129.36,26.0]
[1744677540386,0.03,129.37,129.36,33.17596272]
[1744677540690,0.03,129.37,129.36,26.0]
[1744677541812,7.7597,129.37,129.36,26.0]
[1744677542405,9.3524,129.37,129.33,7.17596272]
[1744677542774,1.6227,129.37,129.34,7.17596272]
[1744677545095,1.6227,129.37,129.35,7.17596272]
[1744677545480,5.8146,129.38,129.35,7.17596272]
[1744677545680,5.8146,129.38,129.34,7.17596272]
[1744677546502,14.90466272,129.39,129.34,7.17596272]
[1744677547781,7.17596272,129.38,129.33,7.732]
[1744677547982,7.17596272,129.38,129.33,14.90796272]
[1744677548185,7.7297,129.38,129.34,7.17596272]
[1744677550109,14.90566272,129.38,129.34,7.17596272]
[1744677550576,14.90566272,129.38,129.33,7.17596272]
[1744677550775,15.2692,129.39,129.34,7.17596272]
[1744677550989,9.2404,129.39,129.36,7.17596272]
[1744677551182,1.5119,129.39,129.36,7.17596272]
[1744677551379,80.8,129.4,129.37,7.17596272]
[1744677551600,80.8,129.4,129.39,7.17596272]
[1744677551804,0.03,129.41,129.39,7.17596272]
[1744677552013,0.03,129.41,129.4,7.17596272]
[1744677555497,0.03,129.41,129.39,26.0]
[1744677555805,0.03,129.41,129.39,33.17596272]
[1744677556008,0.03,129.41,129.4,7.17596272]
[1744677556311,0.03,129.41,129.39,26.0]
[1744677558788,0.03,129.41,129.39,33.17596272]
[1744677559493,0.03,129.41,129.4,7.17596272]
[1744677560011,0.03,129.41,129.39,26.0]
[1744677563511,0.03,129.41,129.39,33.17596272]
[1744677564104,0.03,129.41,129.4,7.17596272]
[1744677565118,0.03,129.41,129.39,33.17596272]
[1744677565297,0.03,129.41,129.39,26.0]
[1744677566625,14.93326272,129.41,129.39,26.0]
[1744677566922,7.17596272,129.4,129.34,7.17596272]
[1744677567123,7.17596272,129.39,129.34,7.17596272]
[1744677567615,7.17596272,129.39,129.32,13.1128]
[1744677567616,7.17596272,129.38,129.36,26.0]
[1744677568003,7.17596272,129.39,129.36,26.0]
[1744677568712,7.7291,129.38,129.35,26.0]
[1744677569623,7.7287,129.39,129.35,33.17596272]
[1744677570221,7.17596272,129.38,129.33,7.7319]
[1744677570396,7.17596272,129.38,129.33,7.17596272]
[1744677570724,14.90546272,129.38,129.33,14.90796272]
[1744677572827,14.90476272,129.39,129.34,7.17596272]
[1744677574118,7.7288,129.39,129.35,7.17596272]
[1744677575328,14.90476272,129.39,129.34,7.17596272]
[1744677576227,1.5604,129.41,129.37,7.17596272]
[1744677576802,1.5604,129.41,129.38,7.17596272]
[1744677578003,0.03,129.41,129.39,7.17596272]
[1744677578326,0.03,129.41,129.4,26.0]
[1744677578521,0.03,129.41,129.37,7.17596272]
[1744677578829,14.93326272,129.41,129.37,26.0]
[1744677581131,7.7573,129.41,129.37,26.0]
[1744677581436,14.93326272,129.41,129.37,26.0]
[1744677583736,7.7573,129.41,129.37,26.0]
[1744677584633,14.93326272,129.41,129.37,26.0]
[1744677586629,14.93326272,129.41,129.36,14.90616272]
[1744677590434,0.03,129.41,129.36,14.90616272]
[1744677590619,0.03,129.41,129.37,7.17596272]
[1744677591738,0.03,129.41,129.37,14.90556272]
[1744677591931,0.03,129.41,129.38,7.17596272]
[1744677592123,0.03,129.41,129.39,7.17596272]
[1744677592319,7.17596272,129.4,129.37,26.0]
[1744677593240,7.7285,129.39,129.36,26.0]
[1744677593938,14.90446272,129.39,129.34,14.90716272]
[1744677594110,16.41636272,129.39,129.34,7.17596272]
[1744677594310,16.41636272,129.39,129.36,26.0]
[1744677595831,7.17596272,129.38,129.36,26.0]
[1744677596135,7.17596272,129.37,129.32,19.0554]
[1744677596335,7.17596272,129.37,129.32,26.23136272]
[1744677597315,14.90586272,129.37,129.32,26.23136272]
[1744677597515,14.90586272,129.37,129.32,19.0554]
[1744677597716,14.90586272,129.37,129.32,26.23136272]
[1744677599334,7.7299,129.37,129.33,7.17596272]
[1744677600726,7.7299,129.37,129.32,19.0554]
[1744677600926,7.7299,129.37,129.33,7.17596272]
[1744677601329,7.7299,129.37,129.33,14.90796272]
[1744677607462,7.7291,129.38,129.34,7.17596272]
[1744677607829,14.90506272,129.38,129.34,7.17596272]
[1744677608346,7.7291,129.38,129.34,7.17596272]
[1744677608832,14.90506272,129.38,129.34,7.17596272]
[1744677609028,1.5119,129.39,129.37,7.17596272]
[1744677609235,14.0708,129.41,129.38,7.17596272]
[1744677609236,0.03,129.41,129.38,7.17596272]
[1744677609539,0.03,129.41,129.36,7.17596272]
[1744677609540,14.93336272,129.41,129.36,7.17596272]
[1744677609732,7.17596272,129.39,129.34,7.17596272]
[1744677609933,7.17596272,129.38,129.33,7.17596272]
[1744677611337,7.7297,129.37,129.33,7.17596272]
[1744677611844,7.17596272,129.36,129.32,0.063]
[1744677612146,7.17596272,129.35,129.32,0.063]
[1744677613664,7.7315,129.34,129.32,0.063]
[1744677616841,7.7309,129.35,129.32,0.063]
[1744677617532,7.7309,129.35,129.32,7.23896272]
[1744677622862,1.6,129.37,129.34,7.17596272]
[1744677623079,88.5286,129.39,129.36,7.17596272]
[1744677623243,88.5286,129.39,129.37,7.17596272]
[1744677623442,88.5286,129.39,129.36,7.17596272]
[1744677623748,88.5286,129.39,129.33,0.28432314]
[1744677623949,88.5286,129.39,129.36,7.17596272]
[1744677624759,80.8,129.39,129.37,7.17596272]
[1744677625057,9.4164,129.41,129.38,7.17596272]
[1744677625858,16.59236272,129.41,129.34,7.7315]
[1744677626164,16.59236272,129.41,129.37,26.0]
[1744677627162,16.59236272,129.41,129.36,7.17596272]
[1744677627857,16.59236272,129.41,129.37,7.17596272]
[1744677628060,7.7573,129.41,129.38,7.17596272]
[1744677629065,0.03,129.41,129.38,7.17596272]
[1744677629664,0.03,129.41,129.39,7.17596272]
[1744677630247,0.03,129.41,129.38,7.17596272]
[1744677630661,0.03,129.41,129.37,7.17596272]
[1744677630861,0.03,129.41,129.33,7.17596272]
[1744677630862,7.17596272,129.38,129.33,7.17596272]
[1744677631055,7.17596272,129.37,129.32,7.23896272]
[1744677631664,7.17596272,129.36,129.32,0.063]
[1744677632045,7.17596272,129.35,129.32,0.063]
[1744677632253,7.17596272,129.36,129.32,0.063]
[1744677632667,7.7309,129.35,129.32,0.063]
[1744677633970,7.7306,129.36,129.32,7.23896272]
[1744677634158,88.5299,129.37,129.33,7.17596272]
[1744677635069,7.17596272,129.36,129.32,26.063]
[1744677635465,7.17596272,129.36,129.32,0.063]
[1744677636178,88.5299,129.37,129.32,7.23896272]
[1744677636371,95.70586272,129.37,129.32,7.23896272]
[1744677636564,7.17596272,129.36,129.32,0.063]
[1744677636767,7.7309,129.35,129.32,0.063]
[1744677636966,7.7309,129.35,129.32,7.23896272]
[1744677638871,7.7303,129.36,129.32,7.23896272]
[1744677639168,80.8,129.37,129.35,7.17596272]
[1744677639380,13.66046272,129.41,129.36,7.17596272]
[1744677639880,6.4845,129.41,129.36,7.17596272]
[1744677640255,7.7576,129.41,129.35,26.0]
[1744677640681,7.17596272,129.39,129.35,26.0]
[1744677640860,7.17596272,129.39,129.32,14.46652314]
[1744677640861,7.17596272,129.37,129.32,7.23896272]
[1744677641059,7.17596272,129.36,129.32,0.063]
[1744677642858,14.90706272,129.35,129.32,0.063]
[1744677643075,7.7311,129.35,129.32,0.063]
[1744677643477,14.90706272,129.35,129.32,0.063]
[1744677646281,7.7311,129.35,129.32,0.063]
[1744677647190,87.97596272,129.34,129.32,0.063]
[1744677647371,7.17596272,129.33,129.32,0.063]
[1744677647693,8.84246272,129.33,129.32,0.063]
[1744677648283,1.6665,129.33,129.32,0.063]
[1744677648788,80.8,129.37,129.32,7.23896272]
[1744677649165,80.8,129.37,129.32,0.063]
[1744677649166,12.06379044,129.36,129.32,0.063]
[1744677649497,12.06379044,129.36,129.32,7.23896272]
[1744677650390,19.79459044,129.36,129.32,7.23896272]
[1744677651296,7.7308,129.36,129.32,7.23896272]
[1744677652594,14.90676272,129.36,129.32,0.063]
[1744677656003,7.7308,129.36,129.32,7.23896272]
[1744677656178,80.8,129.37,129.32,7.23896272]
[1744677656179,87.97596272,129.37,129.32,7.23896272]
[1744677656382,80.8,129.37,129.35,7.17596272]
[1744677656878,95.70576272,129.37,129.32,0.063]
[1744677657068,7.17596272,129.36,129.32,0.063]
[1744677657585,7.17596272,129.35,129.32,0.063]
[1744677657900,7.7309,129.35,129.32,0.063]
[1744677658192,7.17596272,129.33,129.32,0.063]
[1744677658388,7.17596272,129.33,129.32,0.0001]
[1744677659206,26.10993472,129.33,129.32,0.0001]
[1744677659571,26.39425786,129.33,129.32,0.0001]
[1744677659771,8.1937,129.29,129.27,0.063]
[1744677659989,7.17596272,129.28,129.27,0.063]
[1744677662276,14.91106272,129.28,129.27,0.063]
[1744677662598,7.7351,129.28,129.27,0.063]
[1744677662807,19.332,129.32,129.27,0.063]
[1744677662978,19.332,129.32,129.28,7.17596272]
[1744677663303,80.8,129.31,129.29,7.17596272]
[1744677663482,80.8,129.31,129.3,7.17596272]
[1744677664001,19.79539044,129.34,129.3,7.17596272]
[1744677664186,19.79539044,129.34,129.32,7.17596272]
[1744677664499,19.79539044,129.34,129.31,7.17596272]
[1744677664804,19.79539044,129.34,129.3,7.17596272]
[1744677664986,19.79539044,129.34,129.31,7.17596272]
[1744677665299,26.97135316,129.34,129.27,0.063]
[1744677665602,7.17596272,129.33,129.28,33.17596272]
[1744677666093,7.7316,129.34,129.3,7.17596272]
[1744677666401,7.7316,129.34,129.31,7.17596272]
[1744677666697,14.90756272,129.34,129.28,26.0]
[1744677666875,14.90756272,129.34,129.29,7.17596272]
[1744677667073,7.17596272,129.33,129.29,7.17596272]
[1744677667288,7.17596272,129.32,129.27,7.23896272]
[1744677667690,27.0605,129.34,129.29,7.17596272]
[1744677667884,14.90756272,129.34,129.29,7.17596272]
[1744677668278,7.7316,129.34,129.31,7.17596272]
[1744677669396,7.7316,129.34,129.3,7.17596272]
[1744677669596,7.17596272,129.33,129.27,0.063]
[1744677669982,7.17596272,129.33,129.28,7.17596272]
[1744677670183,14.90756272,129.34,129.29,7.17596272]
[1744677670502,7.17596272,129.33,129.28,7.17596272]
[1744677671382,7.7327,129.32,129.28,11.22585272]
[1744677673812,7.7327,129.32,129.28,37.22585272]
[1744677674407,11.22585272,129.3,129.27,0.063]
[1744677674703,11.22585272,129.28,129.27,0.063]
[1744677675284,30.15982472,129.28,129.27,0.063]
[1744677676908,37.89492472,129.28,129.27,0.063]
[1744677677703,18.96095272,129.28,129.27,0.063]
[1744677678202,37.89492472,129.28,129.27,0.063]
[1744677678408,49.65492472,129.28,129.27,0.063]
[1744677678604,49.93924786,129.28,129.27,0.0001]
[1744677679586,7.7351,129.28,129.27,0.0001]
[1744677680006,7.735,129.3,129.27,0.0001]
[1744677680193,11.76,129.31,129.29,11.22585272]
[1744677680503,7.7318,129.34,129.3,11.22585272]
[1744677680710,11.22585272,129.33,129.28,37.22585272]
[1744677680889,27.0607,129.34,129.27,11.22595272]
[1744677680890,11.22585272,129.32,129.27,11.22595272]
[1744677681488,11.22585272,129.32,129.28,11.22585272]
[1744677681801,18.95765272,129.34,129.29,11.22585272]
[1744677682187,37.60730158,129.34,129.29,11.22585272]
[1744677683907,18.95765272,129.34,129.29,11.22585272]
[1744677684111,18.95765272,129.34,129.27,11.22595272]
[1744677684112,18.95855272,129.32,129.27,11.22595272]
[1744677684504,7.7327,129.32,129.28,11.22585272]
[1744677684893,7.7327,129.32,129.28,37.22585272]
[1744677685094,80.8,129.32,129.3,11.22585272]
[1744677685928,80.8,129.32,129.29,11.22585272]
[1744677686225,88.5329,129.32,129.29,11.22585272]
[1744677688094,88.5329,129.32,129.28,37.22585272]
[1744677688295,99.75875272,129.32,129.28,26.0]
[1744677688718,11.22585272,129.31,129.27,0.0001]
[1744677689391,11.22585272,129.3,129.27,0.0001]
[1744677689593,11.22585272,129.29,129.27,0.0001]
[1744677689793,11.22585272,129.28,129.27,0.0001]
[1744677690224,18.96095272,129.28,129.27,0.0001]
[1744677690720,37.89492472,129.28,129.27,0.0001]
[1744677690900,38.17924786,129.28,129.27,0.0001]
[1744677699936,18.96095272,129.28,129.27,0.0001]
[1744677700117,19.4942,129.3,129.27,11.22595272]
[1744677701131,19.4942,129.3,129.27,0.0001]
[1744677703417,11.22585272,129.29,129.27,0.0001]
[1744677703949,50.05485272,129.3,129.27,0.0001]
[1744677706616,11.76,129.3,129.27,0.0001]
[1744677706854,7.7335,129.31,129.27,11.22595272]
[1744677707141,7.7335,129.31,129.28,11.22585272]
[1744677707341,18.95935272,129.31,129.27,0.0001]
[1744677707543,30.15982472,129.3,129.27,0.0001]
[1744677709743,7.7345,129.29,129.27,0.0001]
[1744677710039,80.8,129.3,129.28,11.22585272]
[1744677710246,80.8,129.3,129.29,11.22585272]
[1744677711848,80.8,129.3,129.28,10.10365171]
[1744677712140,80.8,129.3,129.29,36.10365171]
[1744677714439,100.3418,129.34,129.29,43.83815171]
[1744677714733,100.3418,129.34,129.3,10.10365171]
[1744677716224,10.10365171,129.33,129.29,26.0]
[1744677716433,119.6707,129.34,129.29,36.10365171]
[1744677716635,0.03,129.34,129.33,16.53027485]
[1744677716846,0.03,129.36,129.35,26.0]
[1744677717153,0.03,129.36,129.35,36.10365171]
[1744677717532,0.03,129.36,129.35,44.11887485]
[1744677718139,0.03,129.36,129.35,45.76633071]
[1744677720031,0.03,129.38,129.36,0.28432314]
[1744677720231,0.03,129.38,129.37,10.10365171]
[1744677720430,0.03,129.38,129.37,12.03543071]
[1744677720651,0.03,129.38,129.37,1.931779]
[1744677720857,0.03,129.38,129.37,12.03543071]
[1744677721155,0.03,129.38,129.37,10.10365171]
[1744677721954,0.03,129.38,129.36,10.10365171]
[1744677722141,0.03,129.38,129.33,25.6541]
[1744677722457,0.03,129.38,129.35,10.10365171]
[1744677725751,0.03,129.38,129.33,25.6541]
[1744677725953,0.03,129.38,129.34,10.10365171]
[1744677728551,0.03,129.38,129.35,10.10365171]
[1744677729457,0.03,129.38,129.34,10.10365171]
[1744677731257,10.10365171,129.35,129.3,6.4521]
[1744677731562,10.10365171,129.36,129.31,10.10365171]
[1744677731946,17.83455171,129.35,129.31,10.10365171]
[1744677732246,7.7309,129.35,129.31,10.10365171]
[1744677733457,7.7305,129.36,129.31,17.83685171]
[1744677733661,7.7305,129.36,129.32,10.10365171]
[1744677734067,17.83415171,129.36,129.31,10.10365171]
[1744677734270,10.10365171,129.35,129.3,10.10365171]
[1744677734562,10.10365171,129.34,129.29,10.16665171]
[1744677734771,10.10365171,129.33,129.29,10.16665171]
[1744677735067,10.10365171,129.33,129.29,0.063]
[1744677736367,7.7327,129.32,129.29,0.063]
[1744677738142,17.83635171,129.32,129.29,0.063]
[1744677738342,10.10365171,129.3,129.29,0.063]
[1744677739855,90.90365171,129.31,129.29,0.063]
[1744677740267,17.83755171,129.3,129.29,0.063]
[1744677741468,7.7339,129.3,129.29,0.063]
[1744677741657,17.83755171,129.3,129.29,0.063]
[1744677743870,37.05584685,129.3,129.29,0.0001]
[1744677745271,36.77152371,129.3,129.29,0.0001]
[1744677745471,7.7333,129.31,129.29,0.0001]
[1744677747175,7.7329,129.32,129.3,10.10365171]
[1744677747676,27.0604,129.34,129.3,10.10365171]
[1744677748070,37.16405171,129.34,129.29,10.10375171]
[1744677749071,7.7315,129.34,129.31,10.10365171]
[1744677749556,7.7327,129.32,129.3,10.10365171]
[1744677750675,7.7327,129.32,129.29,0.0001]
[1744677751557,7.7327,129.32,129.29,10.10375171]
[1744677752581,88.5321,129.33,129.31,10.10365171]
[1744677752787,80.8,129.33,129.32,10.10365171]
[1744677753080,27.2948,129.37,129.32,10.10365171]
[1744677753081,7.7303,129.36,129.32,10.10365171]
[1744677753262,7.7303,129.36,129.33,10.10365171]
[1744677753787,7.7303,129.36,129.32,10.10365171]
[1744677754479,7.7303,129.36,129.33,10.10365171]
[1744677755982,7.7303,129.36,129.32,10.10365171]
[1744677756979,10.10365171,129.35,129.3,10.10365171]
[1744677757290,37.44417485,129.36,129.31,10.10365171]
[1744677757580,7.7303,129.36,129.32,10.10365171]
[1744677759384,27.0562,129.36,129.31,10.10365171]
[1744677759576,37.15985171,129.36,129.31,10.10365171]
[1744677759761,27.0562,129.36,129.31,10.10365171]
[1744677759962,7.7303,129.36,129.32,10.10365171]
[1744677761282,88.5299,129.37,129.34,10.10365171]
[1744677761458,88.5299,129.37,129.34,10.09476432]
[1744677763871,88.5299,129.37,129.36,10.09476432]
[1744677763872,80.8,129.37,129.36,10.09476432]
[1744677764089,0.03,129.38,129.36,10.09476432]
[1744677764270,0.03,129.38,129.37,10.09476432]
[1744677765065,0.03,129.38,129.37,10.0908943]
[1744677765378,0.03,129.38,129.36,10.0908943]
[1744677765579,0.03,129.38,129.35,36.0908943]
[1744677769892,0.03,129.38,129.36,10.0908943]
[1744677770099,0.03,129.38,129.37,10.0908943]
[1744677771998,0.03,129.38,129.37,10.37521744]
[1744677772185,0.03,129.38,129.37,18.10491744]
[1744677772566,0.03,129.38,129.37,20.0367467]
[1744677772882,0.03,129.38,129.37,12.3070467]
[1744677773279,0.03,129.38,129.37,1.93182926]
[1744677773477,10.1208943,129.38,129.35,26.0]
[1744677773677,10.1208943,129.38,129.33,10.0908943]
[1744677774095,17.8205943,129.37,129.33,26.0]
[1744677774477,7.7297,129.37,129.34,26.0]
[1744677775376,7.7591,129.38,129.33,36.0908943]
[1744677775591,17.8499943,129.38,129.33,36.0908943]
[1744677776096,17.8499943,129.38,129.34,1.93224864]
[1744677777298,17.8499943,129.38,129.33,36.0908943]
[1744677777595,7.7591,129.38,129.34,10.0908943]
[1744677777898,7.7591,129.38,129.35,10.0908943]
[1744677778102,0.03,129.38,129.36,10.0908943]
[1744677778301,0.03,129.38,129.37,10.37521744]
[1744677779185,0.03,129.38,129.37,12.30697086]
[1744677779684,0.03,129.38,129.37,20.03667086]
[1744677780903,0.03,129.38,129.37,12.30697086]
[1744677781097,0.03,129.38,129.37,28.21607656]
[1744677781311,0.03,129.38,129.37,38.30697086]
[1744677781991,0.03,129.38,129.37,36.37521744]
[1744677785110,0.03,129.38,129.37,26.28432314]
[1744677785312,0.03,129.38,129.37,36.37521744]
[1744677785507,0.03,129.38,129.37,44.10491744]
[1744677785889,0.03,129.38,129.37,46.03666462]
[1744677787111,0.03,129.38,129.37,44.10491744]
[1744677788506,0.03,129.38,129.37,26.28432314]
[1744677788822,0.03,129.38,129.37,36.37521744]
[1744677790613,0.03,129.38,129.37,38.30698078]